bitfinex/quotes_ETHUSD_20251011
["timestamp","ask_amount","ask_price","bid_price","bid_amount"]
[1760169507777,0.0962,3762.7,3761.2,2.65865835]
[1760169507778,3.38746603,3762.7,3761.2,2.65865835]
[1760169508060,5.30746603,3762.7,3761.2,2.65865835]
[1760169508561,5.30746603,3762.7,3761.2,2.65865654]
[1760169508870,2.6498,3762.7,3761.6,2.65843851]
[1760169509228,2.6498,3762.7,3761.4,2.65851586]
[1760169509431,0.001,3763.2,3761.8,0.4455]
[1760169509734,0.001,3763.2,3761.8,2.66026524]
[1760169509937,0.0962,3763.1,3761.9,2.65822687]
[1760169510137,0.0962,3763.1,3762.2,2.66001905]
[1760169510346,0.0962,3763.0,3762.2,0.002]
[1760169510545,0.6336,3762.9,3762.2,0.002]
[1760169510746,0.001,3763.2,3762.5,2.65779135]
[1760169510956,0.001,3763.2,3762.2,0.002]
[1760169511172,0.001,3763.2,3762.5,2.65774034]
[1760169511541,0.001,3763.2,3762.2,0.002]
[1760169511738,0.001,3763.2,3762.8,2.65759446]
[1760169511972,0.001,3763.2,3762.2,2.65997246]
[1760169512168,0.001,3763.2,3762.5,2.65780602]
[1760169512334,0.001,3763.2,3762.6,2.65772565]
[1760169512537,0.001,3763.2,3762.7,2.65766529]
[1760169512732,0.001,3763.2,3762.6,2.65773179]
[1760169512970,0.001,3763.2,3762.6,1e-08]
[1760169513175,0.001,3763.2,3762.7,2.65765767]
[1760169513377,0.001,3763.2,3762.6,1e-08]
[1760169513775,0.001,3763.2,3762.7,2.65766423]
[1760169513936,0.001,3763.2,3762.6,1e-08]
[1760169514357,0.001,3763.2,3762.6,2.65772305]
[1760169514664,0.6336,3763.0,3762.6,1e-08]
[1760169514853,1.92,3762.9,3762.6,1e-08]
[1760169515050,0.6336,3762.8,3762.6,1e-08]
[1760169515480,0.7326,3762.7,3762.6,1e-08]
[1760169515781,5.31026603,3762.7,3762.6,1e-08]
[1760169518075,5.72723629,3762.7,3762.6,1e-08]
[1760169519356,3.06957026,3762.7,3762.6,1e-08]
[1760169519589,5.72723629,3762.7,3762.6,1e-08]
[1760169520494,3.06957026,3762.7,3762.6,1e-08]
[1760169520709,1.14957026,3762.7,3762.6,1e-08]
[1760169521061,0.41697026,3762.7,3762.6,1e-08]
[1760169521364,0.51597026,3762.7,3762.6,1e-08]
[1760169521594,0.41697026,3762.7,3762.6,1e-08]
[1760169522111,0.6336,3763.0,3762.6,1e-08]
[1760169522323,0.001,3763.2,3762.6,1e-08]
[1760169522821,0.001,3763.2,3762.9,2.6575055]
[1760169523183,0.001,3763.2,3763.1,2.65738354]
[1760169523919,0.001,3763.2,3762.6,1e-08]
[1760169524217,0.001,3763.2,3763.1,2.65738354]
[1760169525782,0.001,3763.2,3763.1,3.09488354]
[1760169525979,0.1338,3763.2,3763.1,3.09488354]
[1760169526276,0.001,3764.0,3763.5,2.6571011]
[1760169526488,0.001,3764.0,3763.9,2.65681872]
[1760169527120,0.001,3764.0,3763.9,3.09431872]
[1760169528814,0.001,3764.0,3763.9,3.1208869]
[1760169529133,0.001,3764.0,3763.9,3.09431872]
[1760169529719,0.001,3764.0,3763.9,0.4375]
[1760169529889,0.1338,3764.0,3763.9,2.65681872]
[1760169530088,0.1338,3764.0,3763.5,2.6570359]
[1760169530322,0.001,3764.0,3763.6,3.0945263]
[1760169530490,0.001,3764.0,3762.6,1e-08]
[1760169530491,0.1328,3763.6,3763.0,2.65745415]
[1760169530826,0.1328,3763.4,3763.3,2.65724231]
[1760169531030,0.001,3764.0,3763.8,2.65685502]
[1760169531192,0.001,3764.0,3763.6,2.65702874]
[1760169531193,0.1328,3763.8,3763.6,2.65702874]
[1760169531387,0.1328,3763.8,3763.7,3.0944599]
[1760169532384,0.001,3766.7,3763.9,0.6336]
[1760169532588,0.001,3766.7,3764.3,14.2336397]
[1760169532812,0.001,3766.7,3764.5,0.6336]
[1760169533035,0.001,3766.7,3765.8,2.65547776]
[1760169533241,0.001,3766.7,3765.9,2.6553727]
[1760169533421,0.001,3766.7,3766.0,2.65531752]
[1760169533741,0.001,3766.7,3766.1,2.65520846]
[1760169533931,0.001,3766.7,3766.2,2.6551924]
[1760169534527,0.001,3766.7,3766.4,2.6549975]
[1760169534722,0.001,3766.7,3766.5,2.65497155]
[1760169535037,0.001,3766.7,3766.6,2.65491424]
[1760169535425,0.001,3766.7,3766.6,3.09241424]
[1760169538022,0.001,3766.7,3766.6,3.11896338]
[1760169538439,0.001,3766.7,3766.6,3.09241424]
[1760169540728,0.001,3766.7,3766.6,3.11896338]
[1760169541038,0.001,3766.7,3766.6,3.09241424]
[1760169541238,0.001,3766.7,3766.6,3.11896338]
[1760169541647,0.001,3766.7,3766.6,3.09241424]
[1760169542337,0.001,3766.7,3766.6,3.88456338]
[1760169542710,0.001,3766.7,3766.6,5.77801424]
[1760169542924,0.001,3767.5,3767.0,3.28823233]
[1760169543329,0.001,3767.5,3766.7,2.65477649]
[1760169543540,0.132,3766.7,3766.5,0.4375]
[1760169543711,0.132,3766.7,3763.9,2.65678286]
[1760169543712,0.132,3766.5,3766.0,0.4375]
[1760169543911,0.132,3766.2,3766.1,3.09276672]
[1760169544721,0.132,3766.2,3765.8,0.2364]
[1760169545036,3.27262283,3767.2,3766.0,2.65529505]
[1760169545247,2.65478056,3766.8,3765.2,2.65590141]
[1760169545413,0.6336,3766.6,3765.1,0.6739]
[1760169545608,1.43776907,3766.6,3765.7,2.65554709]
[1760169545914,2.5536,3766.8,3765.6,2.65561358]
[1760169546140,0.132,3765.2,3765.1,3.32987195]
[1760169546341,1.92,3766.5,3765.1,0.6739]
[1760169546651,2.0685,3766.6,3765.4,2.65574194]
[1760169546846,1.92,3766.3,3765.2,2.65587823]
[1760169547033,1.92,3766.3,3764.7,0.2173]
[1760169547234,0.6336,3766.5,3764.7,0.2173]
[1760169547416,1.92,3766.0,3764.8,2.65618359]
[1760169548156,0.6336,3766.2,3764.2,0.2173]
[1760169548157,1.92,3765.8,3764.2,0.2173]
[1760169548362,1.92,3765.8,3764.5,2.65632956]
[1760169548555,1.92,3765.8,3764.4,2.65646583]
[1760169548767,0.6336,3766.0,3764.5,0.4741]
[1760169549063,1.92,3766.9,3765.2,2.65584119]
[1760169549064,0.6336,3766.3,3765.2,2.65584119]
[1760169549231,0.6336,3766.3,3765.0,0.4741]
[1760169549429,0.6336,3766.4,3765.0,0.4741]
[1760169549626,0.6336,3766.7,3765.1,2.65597195]
[1760169549853,0.6336,3766.7,3765.0,0.4741]
[1760169549854,1.92,3766.2,3765.0,0.4741]
[1760169550249,1.92,3766.2,3765.1,2.65596302]
[1760169550479,2.6556176,3767.1,3765.0,0.4741]
[1760169550480,2.65483822,3766.8,3765.0,0.4741]
[1760169550759,0.099,3766.9,3765.9,2.65537726]
[1760169550973,0.099,3766.9,3766.0,2.65532728]
[1760169551360,0.099,3766.9,3765.8,2.65547281]
[1760169551361,0.001,3767.1,3765.8,2.65547281]
[1760169551687,0.41641052,3766.8,3765.6,0.4741]
[1760169552065,2.65527268,3766.1,3764.4,0.4741]
[1760169552226,2.33649202,3766.6,3764.6,0.4741]
[1760169552427,0.41649202,3766.6,3765.5,2.65566544]
[1760169552757,0.41649202,3766.6,3765.4,3.1297939]
[1760169553053,2.33649202,3766.6,3765.5,2.65565386]
[1760169553254,0.41649202,3766.6,3765.5,2.65568981]
[1760169553438,1.92,3766.5,3765.4,3.12984448]
[1760169553953,2.65498494,3766.5,3765.4,0.4741]
[1760169554137,0.41649202,3766.6,3764.4,0.4741]
[1760169554138,0.7325,3766.4,3764.4,0.4741]
[1760169554338,0.41649202,3766.6,3764.4,0.4741]
[1760169554339,0.6336,3766.1,3764.4,0.4741]
[1760169554663,2.65547825,3765.8,3763.7,2.65691311]
[1760169554863,0.61565045,3765.7,3764.7,2.65625245]
[1760169555036,0.61565045,3765.7,3764.7,2.65619704]
[1760169555442,0.41655045,3765.7,3764.8,2.65617958]
[1760169556169,0.41655045,3765.7,3764.7,2.65623784]
[1760169556351,2.65541411,3765.9,3764.7,2.65623784]
[1760169556552,0.1328,3764.7,3764.6,2.65630742]
[1760169556869,1.92,3765.8,3764.8,0.002]
[1760169557167,0.6336,3765.6,3764.8,0.002]
[1760169557474,0.099,3765.7,3764.8,2.65817428]
[1760169557642,0.099,3765.7,3764.8,1.232]
[1760169557846,3.28934743,3765.5,3764.8,1.232]
[1760169558046,0.099,3765.4,3764.8,1.232]
[1760169558270,2.019,3765.4,3764.8,1.232]
[1760169558575,0.099,3765.4,3764.8,1.232]
[1760169558992,0.6336,3765.3,3764.8,1.232]
[1760169559147,5.20971304,3764.9,3764.8,2.363]
[1760169562181,5.20971304,3764.9,3764.8,3.593]
[1760169562973,5.62642908,3764.9,3764.8,3.593]
[1760169563755,1.92,3764.9,3764.8,4.823]
[1760169563975,2.9702984,3764.9,3764.8,4.823]
[1760169564188,0.4166984,3764.9,3764.8,4.823]
[1760169564376,0.1001,3765.9,3764.8,4.823]
[1760169564579,0.41664189,3765.7,3764.8,4.823]
[1760169564782,0.6336,3765.6,3764.8,4.823]
[1760169564986,1.92,3765.5,3764.8,4.823]
[1760169565161,0.41664189,3765.7,3764.8,4.823]
[1760169565659,0.6336,3765.6,3764.8,6.053]
[1760169565863,1.92,3765.3,3764.8,6.053]
[1760169566088,2.6558578,3765.3,3764.8,6.053]
[1760169566283,0.6336,3765.2,3764.8,6.053]
[1760169566483,2.65611304,3764.9,3764.8,6.053]
[1760169566709,1.92,3764.9,3764.8,6.053]
[1760169566855,5.20971304,3764.9,3764.8,6.053]
[1760169567058,5.20971304,3764.9,3764.8,7.283]
[1760169568080,2.5536,3764.9,3764.8,7.283]
[1760169568286,1.92,3764.9,3764.8,8.513]
[1760169570097,1.92,3764.9,3764.8,9.743]
[1760169572387,1.92,3764.9,3764.8,10.973]
[1760169573423,0.001,3766.7,3764.8,11.4471]
[1760169573723,0.41761432,3766.7,3764.9,0.50066113]
[1760169573903,0.41761432,3766.7,3765.0,2.65604249]
[1760169573904,0.1328,3765.1,3765.0,2.65604249]
[1760169574110,0.1328,3765.1,3765.0,3.13014249]
[1760169574496,0.1328,3765.1,3765.0,0.4741]
[1760169574816,0.1328,3765.1,3765.0,2.65604249]
[1760169575006,0.1328,3765.1,3765.0,3.13014249]
[1760169575213,0.001,3765.3,3765.0,3.13014249]
[1760169575407,0.001,3765.7,3765.6,2.65561929]
[1760169575606,0.001,3766.7,3765.4,2.65571305]
[1760169575783,0.001,3766.7,3766.6,2.87501424]
[1760169576189,0.001,3766.7,3766.6,3.31051424]
[1760169576384,0.001,3766.7,3766.6,0.4355]
[1760169576610,0.001,3766.7,3766.6,3.09041424]
[1760169576998,0.001,3766.7,3766.6,0.4355]
[1760169577201,0.001,3766.7,3766.6,3.09041424]
[1760169578521,0.001,3766.7,3766.3,0.2201]
[1760169578689,0.001,3766.7,3765.8,0.2201]
[1760169578896,0.001,3766.7,3766.6,2.65491424]
[1760169579402,0.001,3766.7,3766.6,3.09041424]
[1760169579885,0.001,3766.7,3766.6,2.65491424]
[1760169580325,0.001,3766.7,3766.6,3.11381424]
[1760169580498,0.001,3766.7,3766.6,3.12173037]
[1760169581036,0.001,3766.7,3766.6,3.11381424]
[1760169581693,0.001,3766.7,3766.6,3.12540278]
[1760169581887,0.001,3766.7,3766.6,3.14036338]
[1760169582089,0.001,3766.7,3766.6,3.11381424]
[1760169582822,0.001,3766.7,3766.6,3.74741424]
[1760169583322,0.001,3766.7,3766.6,3.11381424]
[1760169584890,0.001,3766.7,3766.6,5.69396338]
[1760169585208,0.001,3766.7,3766.6,5.66741424]
[1760169585543,0.001,3766.7,3766.6,5.79941424]
[1760169586532,0.001,3766.7,3766.6,5.66741424]
[1760169587756,1.0,3769.5,3767.4,3.28795048]
[1760169587924,1.0,3769.5,3767.4,5.20795048]
[1760169588253,1.0,3769.5,3767.4,5.66685048]
[1760169591919,0.001,3767.9,3767.4,5.66685048]
[1760169592767,0.001,3767.9,3767.8,3.28766868]
[1760169593275,0.001,3767.9,3767.8,3.74656868]
[1760169594368,0.001,3767.9,3767.8,3.11296868]
[1760169594738,0.001,3767.9,3767.8,3.74656868]
[1760169595147,0.001,3768.3,3767.8,5.68361457]
[1760169595349,1.0,3769.5,3769.4,2.65294211]
[1760169595551,1.0,3769.5,3769.4,3.11184211]
[1760169597752,1.0,3769.5,3769.4,3.24384211]
[1760169598269,1.0,3769.5,3769.4,3.11184211]
[1760169602268,1.0,3770.3,3769.4,3.74544211]
[1760169602471,0.001,3770.8,3770.7,2.65202747]
[1760169604079,0.001,3770.8,3770.7,3.28562747]
[1760169604469,0.001,3770.8,3770.7,2.65202747]
[1760169605607,0.001,3770.8,3770.6,2.65203882]
[1760169605904,0.001,3770.8,3770.2,2.70064003]
[1760169606109,0.001,3770.8,3770.4,2.6522195]
[1760169606314,0.001,3770.8,3770.5,2.65213797]
[1760169606489,0.001,3770.8,3768.9,2.65329406]
[1760169606684,0.4589,3770.7,3768.2,0.2187]
[1760169606916,2.3789,3770.7,3768.2,0.2187]
[1760169607218,2.3789,3770.7,3769.5,2.65285744]
[1760169607219,0.41604955,3770.4,3769.5,2.65285744]
[1760169607396,0.41604955,3770.4,3768.2,0.2187]
[1760169607397,1.0925,3770.3,3768.2,0.2187]
[1760169607597,1.0925,3770.3,3769.0,2.65315432]
[1760169607899,0.4589,3770.6,3768.9,2.65326862]
[1760169608134,0.4589,3770.6,3768.2,0.2187]
[1760169608135,0.41611091,3770.4,3768.2,0.2187]
[1760169608432,0.132,3768.9,3768.8,2.65336446]
[1760169609004,0.132,3768.9,3767.4,0.002]
[1760169609229,2.8780629,3769.8,3768.4,2.65361539]
[1760169609230,0.132,3768.5,3768.4,2.65361539]
[1760169609426,0.4589,3769.5,3768.2,2.65374426]
[1760169609625,0.132,3768.2,3768.1,2.65385738]
[1760169609828,0.132,3768.2,3767.5,0.132]
[1760169609829,0.132,3768.2,3768.0,2.65390945]
[1760169610032,0.132,3768.2,3768.1,2.65385738]
[1760169610502,1.92,3769.4,3768.0,2.65387534]
[1760169610703,0.6336,3769.7,3767.4,0.002]
[1760169610704,0.132,3767.8,3767.4,0.002]
[1760169610902,2.65351876,3768.6,3767.4,2.6562848]
[1760169611224,0.132,3767.6,3767.4,2.65633997]
[1760169611423,0.132,3767.6,3767.5,2.65428002]
[1760169611736,16.83218244,3770.5,3767.5,2.65428002]
[1760169611737,0.4589,3770.3,3769.3,2.65300975]
[1760169611951,0.132,3769.3,3768.5,2.65355533]
[1760169612248,1.92,3770.2,3769.1,2.65314386]
[1760169612449,1.92,3770.2,3768.3,0.132]
[1760169612450,0.87502637,3770.1,3767.2,2.65444653]
[1760169612617,0.87502637,3770.1,3769.0,2.65316736]
[1760169612618,2.79502637,3770.1,3769.0,2.65316736]
[1760169612816,2.79502637,3770.1,3769.1,0.01185133]
[1760169613023,3.52750344,3770.1,3769.1,0.01185133]
[1760169613762,0.6336,3770.0,3767.4,0.002]
[1760169614049,0.6336,3770.0,3768.0,2.65387806]
[1760169614050,0.2254,3769.2,3768.0,2.65387806]
[1760169614257,0.6336,3768.8,3767.4,0.002]
[1760169614625,0.6336,3768.6,3767.4,0.002]
[1760169614850,0.6336,3768.4,3767.4,2.65633695]
[1760169615037,0.4589,3768.7,3767.5,0.0095847]
[1760169615353,1.92,3768.8,3767.5,2.66385141]
[1760169615574,2.65322402,3769.0,3767.8,2.65400896]
[1760169615749,2.65322402,3769.0,3767.9,0.00958368]
[1760169615951,2.5536,3769.1,3767.9,0.00958368]
[1760169615952,0.6336,3769.1,3767.9,0.00958368]
[1760169616253,1.92,3768.8,3767.8,2.65401309]
[1760169616452,1.92,3768.8,3767.4,0.002]
[1760169616453,0.2254,3769.2,3767.9,0.0205847]
[1760169616756,0.4589,3769.3,3767.4,0.002]
[1760169616757,1.92,3768.9,3767.4,0.002]
[1760169616920,1.92,3768.5,3767.4,0.002]
[1760169617120,0.4589,3769.1,3767.4,0.002]
[1760169617121,0.4589,3768.8,3767.4,0.002]
[1760169617363,3.0125,3768.4,3767.4,0.002]
[1760169617662,3.11255724,3768.4,3767.4,0.002]
[1760169617867,0.6336,3768.8,3767.8,2.65400901]
[1760169618033,0.6336,3768.8,3767.4,0.02581759]
[1760169618034,2.65365739,3768.4,3767.4,0.002]
[1760169618231,0.4589,3768.7,3767.4,0.002]
[1760169618449,3.11267906,3768.3,3767.4,0.002]
[1760169618754,1.92,3768.1,3767.4,0.002]
[1760169618950,2.65386017,3768.1,3767.4,0.002]
[1760169619155,2.3789,3768.3,3767.4,0.002]
[1760169619325,2.65260349,3769.9,3767.5,0.01721324]
[1760169619523,0.2254,3769.9,3768.8,2.65333358]
[1760169619960,0.2254,3769.9,3768.6,2.65344131]
[1760169620157,0.4589,3769.8,3766.9,2.65467463]
[1760169620359,0.4589,3769.8,3767.9,2.65399824]
[1760169620673,0.4589,3769.8,3767.4,0.002]
[1760169620828,0.41603652,3770.0,3767.5,2.5536]
[1760169621027,0.41603652,3770.0,3767.4,0.002]
[1760169621028,0.001,3770.8,3769.9,2.65258143]
[1760169621338,0.41603666,3770.7,3770.0,2.65246284]
[1760169621648,0.41603666,3770.7,3770.1,0.01555877]
[1760169621851,0.41603666,3770.7,3769.7,0.01555877]
[1760169622023,0.001,3770.8,3768.6,0.6336]
[1760169622224,0.001,3770.8,3768.4,2.5536]
[1760169622458,0.001,3770.8,3769.9,2.65252036]
[1760169622459,0.4589,3770.7,3769.9,2.65252036]
[1760169622638,0.4589,3770.7,3768.5,3.28717569]
[1760169622639,0.132,3769.8,3769.4,2.65287375]
[1760169622961,0.132,3769.8,3767.9,2.65395535]
[1760169622962,0.132,3769.4,3768.1,2.65379053]
[1760169623124,0.4589,3769.7,3768.9,2.6532351]
[1760169623432,0.6843,3769.9,3767.8,0.01555601]
[1760169623759,0.41604317,3769.8,3767.6,2.65420957]
[1760169623961,0.4589,3769.7,3767.6,1.92]
[1760169624160,3.11176305,3769.6,3768.3,2.65365299]
[1760169624460,3.11176305,3769.6,3767.0,0.002]
[1760169624461,1.92,3769.3,3767.5,2.65428002]
[1760169624757,3.11203992,3769.2,3767.3,2.65440496]
[1760169624955,0.4589,3769.2,3768.3,2.65369469]
[1760169625161,0.41610942,3769.1,3768.3,2.65369469]
[1760169625356,0.41610942,3769.1,3767.0,0.002]
[1760169625357,0.41610942,3769.1,3768.9,2.65322934]
[1760169625533,0.001,3770.8,3768.0,0.6336]
[1760169625857,0.001,3770.8,3769.2,2.6530805]
[1760169626058,0.001,3770.8,3770.1,2.65238833]
[1760169626257,0.001,3770.8,3769.1,0.0496]
[1760169626479,0.001,3770.8,3769.9,2.65253123]
[1760169626630,0.001,3770.8,3768.9,2.65327169]
[1760169626846,0.001,3770.8,3769.3,2.65294224]
[1760169626847,0.001,3770.3,3769.3,2.65294224]
[1760169627181,0.001,3770.3,3769.5,2.65281652]
[1760169627382,0.001,3770.3,3768.8,0.0496]
[1760169627688,0.001,3770.3,3769.4,2.65294211]
[1760169627975,0.001,3770.3,3770.1,2.65238034]
[1760169628139,0.001,3770.3,3769.4,2.65294211]
[1760169628346,0.001,3770.3,3769.2,2.653075]
[1760169628547,0.001,3770.3,3770.2,2.65237918]
[1760169629158,0.001,3770.3,3770.2,2.70197918]
[1760169631358,0.001,3770.3,3770.2,2.65237918]
[1760169631556,0.001,3770.3,3769.2,0.6336]
[1760169631747,0.001,3770.3,3770.0,2.65247862]
[1760169632081,0.001,3770.3,3768.7,0.0496]
[1760169632291,0.001,3770.3,3768.9,2.65327989]
[1760169632292,2.3789,3770.2,3768.9,2.65327989]
[1760169632578,0.4589,3770.1,3768.0,0.0496]
[1760169633088,0.4589,3770.1,3768.6,2.65344844]
[1760169633089,1.92,3769.7,3768.6,2.65344844]
[1760169633249,0.6843,3769.6,3768.6,2.65344844]
[1760169633446,0.132,3768.6,3768.3,2.65367489]
[1760169633651,0.132,3768.3,3767.8,2.65406868]
[1760169633851,0.132,3768.3,3768.2,2.65378695]
[1760169634176,0.132,3768.3,3768.2,2.68032481]
[1760169634361,0.4589,3769.1,3767.4,0.002]
[1760169634766,0.4589,3769.1,3768.2,2.65373967]
[1760169635070,0.4589,3769.1,3767.4,0.002]
[1760169635071,0.4589,3769.1,3768.1,2.65384059]
[1760169635371,1.92,3768.7,3767.7,2.65412613]
[1760169635582,0.41621482,3768.9,3767.9,2.65392951]
[1760169635766,0.41621482,3768.9,3767.4,0.002]
[1760169635962,0.4438,3768.8,3767.7,2.65412225]
[1760169636188,0.4438,3768.8,3767.4,0.002]
[1760169636189,1.92,3768.4,3767.4,0.002]
[1760169636395,0.6336,3768.6,3767.4,0.002]
[1760169636696,0.4438,3768.3,3767.4,2.65631879]
[1760169636901,0.4438,3768.3,3767.4,0.002]
[1760169637056,0.2337,3767.5,3767.4,0.002]
[1760169637457,0.6336,3767.4,3767.0,0.002]
[1760169637784,0.6336,3767.4,3766.6,8.612]
[1760169637785,2.5536,3767.2,3766.6,8.612]
[1760169637954,1.92,3766.7,3766.6,8.612]
[1760169638158,2.3638,3766.7,3766.6,8.137]
[1760169638352,1.92,3766.7,3766.6,10.79191424]
[1760169638552,1.92,3766.7,3766.6,8.137]
[1760169638759,1.92,3766.7,3766.6,10.79191424]
[1760169639356,1.92,3766.7,3766.6,9.367]
[1760169640260,1.92,3766.7,3766.6,12.02191424]
[1760169640459,0.4438,3768.1,3766.6,9.8016]
[1760169640655,0.41631589,3768.5,3766.7,2.6728769]
[1760169640988,2.65132014,3771.8,3766.7,2.6728769]
[1760169640989,0.4438,3769.3,3767.1,0.6336]
[1760169641152,0.41620361,3769.1,3767.4,2.65435048]
[1760169641354,0.4438,3769.8,3767.8,2.65406868]
[1760169641568,0.41610433,3769.7,3767.9,3.08856096]
[1760169641791,0.41610433,3769.7,3769.0,2.65319461]
[1760169642005,2.65245226,3770.1,3767.9,3.08856096]
[1760169642006,0.4438,3770.4,3768.4,0.4346]
[1760169642179,0.4438,3770.2,3768.4,2.65360327]
[1760169642380,0.4438,3770.2,3766.6,12.01781814]
[1760169642381,2.65251989,3770.0,3767.4,0.4346]
[1760169642581,0.6775,3769.9,3767.7,0.6336]
[1760169642786,0.6775,3769.9,3767.4,0.4346]
[1760169642787,0.4438,3769.9,3769.2,2.65308176]
[1760169643012,0.4438,3769.9,3769.3,2.65301179]
[1760169643185,0.43053124,3769.9,3769.3,2.65301179]
[1760169643386,0.43053124,3769.9,3769.3,2.65300801]
[1760169643707,0.41612097,3770.2,3769.2,2.65307377]
[1760169643878,0.41612097,3770.2,3769.4,2.65288017]
[1760169644078,0.41612097,3770.2,3768.5,0.1556]
[1760169644273,0.41612097,3770.2,3768.5,2.80916501]
[1760169644497,0.41612097,3770.2,3769.3,2.65300011]
[1760169644687,2.33612097,3770.2,3769.2,2.65307093]
[1760169644892,0.41612097,3770.2,3769.3,2.65300343]
[1760169645089,0.41612097,3770.2,3769.2,2.6530659]
[1760169645417,0.41612097,3770.2,3768.5,2.65357569]
[1760169645418,0.132,3769.2,3768.9,2.65326101]
[1760169645575,0.132,3769.2,3768.3,0.4346]
[1760169645576,0.4438,3770.1,3769.4,2.65293026]
[1760169645777,0.132,3768.6,3768.5,2.65357569]
[1760169645977,0.132,3768.6,3768.5,3.12377569]
[1760169646179,0.41612097,3770.2,3767.5,0.4702]
[1760169646180,0.4734,3769.3,3767.5,0.4702]
[1760169646479,0.4734,3769.3,3768.7,2.65337259]
[1760169646673,0.4734,3769.3,3768.5,2.65351083]
[1760169646872,0.4734,3769.3,3767.8,2.65405832]
[1760169646873,0.4734,3769.2,3768.4,2.65358286]
[1760169647088,0.6336,3769.6,3767.0,0.4702]
[1760169647286,0.4734,3769.1,3767.1,2.65456186]
[1760169647496,0.4734,3769.1,3768.3,2.65366975]
[1760169648023,0.4734,3769.1,3768.2,2.65377396]
[1760169648324,0.4734,3769.1,3767.5,0.4702]
[1760169648524,0.4734,3769.1,3768.3,2.65367241]
[1760169648691,2.65280214,3769.6,3767.7,2.6541351]
[1760169648692,1.92,3768.8,3767.7,2.6541351]
[1760169648877,0.4734,3768.7,3766.9,3.12486314]
[1760169649191,1.92,3768.5,3767.5,2.65424348]
[1760169649400,0.4734,3768.6,3767.7,2.65412828]
[1760169649783,0.4734,3768.6,3766.9,0.4702]
[1760169649979,0.4734,3768.6,3766.6,15.517]
[1760169649980,0.4734,3768.6,3767.5,2.65421283]
[1760169650227,0.4734,3768.5,3767.7,2.65413515]
[1760169650506,3.12709935,3768.4,3767.2,2.65442651]
[1760169650691,0.4734,3768.4,3766.8,0.4702]
[1760169650889,0.41627896,3768.7,3767.0,2.65463233]
[1760169651119,0.41627896,3768.7,3766.9,0.6336]
[1760169651120,0.4734,3769.4,3768.4,2.65358936]
[1760169651294,0.41616001,3769.2,3768.4,2.65358936]
[1760169651490,0.4734,3769.1,3766.9,3.12489288]
[1760169651831,0.4734,3769.0,3767.1,2.65456186]
[1760169651997,0.41616001,3769.2,3767.0,0.6336]
[1760169652201,1.92,3768.5,3767.5,2.65423299]
[1760169652511,0.2223,3767.6,3767.0,2.65457965]
[1760169652710,0.4734,3768.1,3766.6,19.40185339]
[1760169652881,0.4734,3768.1,3766.6,17.977]
[1760169653221,0.4734,3768.1,3767.4,2.65434908]
[1760169653581,0.41628563,3768.3,3766.7,2.65484376]
[1760169653923,0.2233,3769.7,3766.9,2.6547028]
[1760169653924,0.4734,3768.6,3766.9,2.6547028]
[1760169654085,0.4734,3768.6,3768.1,2.65379534]
[1760169654291,0.4734,3768.5,3768.0,2.65386168]
[1760169654623,0.2223,3768.7,3767.1,3.12476186]
[1760169654824,0.4734,3768.6,3767.7,2.65412784]
[1760169655123,0.2223,3768.7,3767.5,2.6542714]
[1760169655124,1.92,3768.2,3767.5,2.6542714]
[1760169655282,0.4734,3768.1,3767.2,2.65442624]
[1760169655481,0.4734,3768.0,3767.4,2.65434293]
[1760169655708,0.4734,3768.0,3766.6,19.207]
[1760169656215,0.4734,3768.0,3767.2,2.65443192]
[1760169656417,0.4734,3768.0,3766.6,20.437]
[1760169656596,0.132,3766.8,3766.7,2.65484376]
[1760169657717,0.4734,3768.4,3767.6,2.65417928]
[1760169657923,0.4734,3768.4,3767.7,2.65413664]
[1760169658084,0.4734,3768.4,3767.9,2.65395919]
[1760169658280,0.132,3767.9,3767.8,2.65406868]
[1760169658512,0.4734,3768.9,3768.1,2.65385233]
[1760169658717,0.132,3767.8,3766.6,21.667]
[1760169659012,0.132,3767.8,3767.5,2.65421578]
[1760169659223,0.132,3767.0,3766.8,2.6547659]
[1760169659423,0.2223,3768.7,3767.9,2.65394099]
[1760169659627,0.4734,3769.1,3768.4,2.65364043]
[1760169659833,0.4734,3769.1,3767.6,2.65416462]
[1760169659834,0.132,3768.4,3768.3,2.65369851]
[1760169659989,0.4734,3769.1,3767.3,0.4702]
[1760169660190,2.3934,3769.1,3768.1,2.65380193]
[1760169660687,0.4734,3769.1,3768.1,2.65380193]
[1760169660907,0.132,3768.1,3768.0,2.65392781]
[1760169661083,0.4734,3769.1,3768.2,2.65376998]
[1760169661286,0.4734,3769.1,3766.8,0.132]
[1760169661287,0.4734,3769.0,3766.8,0.132]
[1760169661490,0.4734,3769.0,3766.6,23.3672]
[1760169661491,0.6336,3768.9,3767.4,1.23]
[1760169661698,0.41622169,3768.5,3767.4,1.23]
[1760169661901,2.65348645,3768.7,3767.5,2.65428002]
[1760169662103,2.65348645,3768.7,3767.4,1.23]
[1760169662104,0.4734,3768.6,3767.4,1.23]
[1760169662309,1.92,3768.4,3767.4,1.23]
[1760169662619,0.2223,3767.5,3767.4,1.23]
[1760169662918,0.6957,3767.5,3767.4,1.23]
[1760169663122,0.41626532,3768.8,3767.4,2.46]
[1760169663123,1.92,3768.4,3767.4,2.46]
[1760169663321,0.4734,3768.6,3767.4,5.58453793]
[1760169663523,0.4734,3768.6,3768.0,2.6538766]
[1760169663821,2.6525696,3770.0,3767.4,2.9302]
[1760169663822,0.4734,3769.1,3767.4,2.9302]
[1760169664139,0.4734,3769.0,3768.2,2.653773]